bitfinex/quotes_ETHUSD_20250724
["timestamp","ask_amount","ask_price","bid_price","bid_amount"]
[1753397132663,4.40924461,3734.1,3733.3,0.55]
[1753397132965,2.67821411,3733.9,3733.3,0.55]
[1753397133188,4.811,3733.8,3733.3,0.55]
[1753397133331,4.811,3733.8,3733.4,0.4719]
[1753397135666,7.48925255,3733.8,3733.1,3.22971838]
[1753397135964,4.811,3733.8,3733.2,0.4719]
[1753397136138,2.67830838,3733.7,3733.2,0.4719]
[1753397136464,2.67838153,3733.6,3733.2,0.4719]
[1753397136665,4.791,3733.5,3733.3,0.4719]
[1753397136866,4.791,3733.5,3733.4,0.4719]
[1753397137374,4.791,3733.5,3733.4,1.0219]
[1753397138051,4.781,3733.7,3733.5,0.55]
[1753397138369,4.781,3733.7,3733.5,1.4652]
[1753397138553,4.781,3733.7,3733.5,0.55]
[1753397138767,4.781,3733.7,3733.6,1.0219]
[1753397141271,4.781,3733.7,3733.6,1.1555]
[1753397141454,4.781,3733.7,3733.6,1.1565]
[1753397144587,7.4292494,3733.8,3733.6,0.6846]
[1753397144780,0.4487,3733.7,3733.6,0.6846]
[1753397145081,7.9124494,3733.8,3733.6,0.6846]
[1753397145082,4.751,3733.8,3733.6,0.6846]
[1753397145579,7.42924724,3733.8,3733.6,0.6846]
[1753397145763,4.751,3733.8,3733.6,0.6846]
[1753397146095,4.40820838,3733.7,3733.6,0.001]
[1753397146681,3.45500838,3733.7,3733.6,0.001]
[1753397147203,2.67830838,3733.7,3733.6,0.001]
[1753397150087,3.13230838,3733.7,3733.6,0.001]
[1753397150393,3.63150838,3733.7,3733.6,0.001]
[1753397150694,4.73757811,3733.7,3733.6,0.001]
[1753397153006,3.78437811,3733.7,3733.6,0.001]
[1753397153211,7.38630838,3733.7,3733.6,0.001]
[1753397153707,4.708,3733.7,3733.6,0.001]
[1753397154806,7.38630838,3733.7,3733.6,0.001]
[1753397156202,7.38630838,3733.7,3733.6,0.1346]
[1753397156704,8.33950838,3733.7,3733.6,0.1346]
[1753397157105,7.84030838,3733.7,3733.6,0.1346]
[1753397158808,8.61392285,3733.7,3733.6,0.1346]
[1753397158992,8.61392285,3733.7,3733.6,0.001]
[1753397165593,9.37152285,3733.7,3733.6,0.001]
[1753397165894,0.002,3734.3,3733.6,0.001]
[1753397166095,0.002,3734.3,3733.8,0.55]
[1753397166096,2.67801567,3734.2,3733.8,0.55]
[1753397166320,0.002,3734.3,3734.0,0.55]
[1753397166321,4.664,3734.1,3734.0,0.55]
[1753397166521,2.67989829,3734.3,3734.0,1.011]
[1753397166720,4.662,3734.2,3734.0,1.011]
[1753397167126,4.662,3734.2,3733.8,0.55]
[1753397167400,4.662,3734.2,3733.8,4.78776306]
[1753397167707,0.002,3734.3,3734.0,0.55]
[1753397168019,4.658,3734.2,3734.0,0.55]
[1753397168216,4.658,3734.2,3734.1,0.461]
[1753397168433,0.002,3734.3,3734.2,0.55]
[1753397168611,0.002,3734.3,3734.2,1.15886]
[1753397168612,4.655,3734.3,3734.2,1.15886]
[1753397168996,4.655,3734.3,3734.2,1.61986]
[1753397169392,4.655,3734.3,3734.2,4.29780976]
[1753397169696,4.655,3734.3,3734.2,1.61986]
[1753397170097,4.655,3734.3,3734.2,1.15826]
[1753397170296,4.655,3734.3,3734.2,1.011]
[1753397170502,4.655,3734.3,3734.1,0.55]
[1753397170912,4.655,3734.3,3734.2,0.461]
[1753397173122,4.655,3734.3,3733.9,1.011]
[1753397173322,4.655,3734.3,3734.0,0.461]
[1753397173645,4.655,3734.3,3733.9,0.55]
[1753397173646,4.655,3734.3,3734.2,0.55]
[1753397173841,7.33287804,3734.3,3734.2,0.55]
[1753397174005,7.33287804,3734.3,3733.9,0.461]
[1753397174207,7.33287804,3734.3,3733.6,2.67936419]
[1753397174208,0.454,3734.2,3733.7,0.55]
[1753397174408,4.626,3734.1,3733.8,0.461]
[1753397174639,4.626,3734.1,3733.9,0.461]
[1753397175636,4.626,3734.1,3734.0,1.0438]
[1753397176033,4.626,3734.1,3734.0,1.1774]
[1753397176778,8.25422147,3734.1,3734.0,0.1336]
[1753397176945,2.67830838,3733.7,3733.6,0.001]
[1753397177140,7.29230838,3733.7,3733.6,0.001]
[1753397177370,7.75020838,3733.7,3733.6,0.1346]
[1753397177743,8.24250838,3733.7,3733.6,0.1346]
[1753397178378,9.07270838,3733.7,3733.6,0.1346]
[1753397178676,10.24779591,3733.7,3733.6,0.1346]
[1753397179583,10.24779591,3733.7,3733.6,0.001]
[1753397180963,13.24779591,3733.7,3733.6,0.001]
[1753397181170,13.38139591,3733.7,3733.6,0.001]
[1753397183243,5.67866709,3733.2,3733.1,0.001]
[1753397183443,2.67888237,3732.9,3732.8,0.001]
[1753397183663,7.26788237,3732.9,3732.8,0.001]
[1753397183980,8.21808237,3732.9,3732.8,0.001]
[1753397186282,11.21808237,3732.9,3732.8,0.001]
[1753397186490,11.99208237,3732.9,3732.8,0.001]
[1753397186650,13.79718346,3732.9,3732.8,0.001]
[1753397189664,3.48774123,3732.4,3732.1,0.001]
[1753397189870,8.05174123,3732.4,3732.1,0.001]
[1753397190070,9.00194123,3732.4,3732.1,0.001]
[1753397190265,12.00194123,3732.4,3732.1,0.001]
[1753397190564,13.48341084,3732.4,3732.1,0.001]
[1753397192008,2.67938481,3732.2,3732.1,0.001]
[1753397192303,10.36898481,3732.2,3732.1,1e-08]
[1753397192503,12.12768481,3732.2,3732.1,1e-08]
[1753397194211,2.67981562,3731.6,3731.5,0.001]
[1753397194410,10.49779718,3731.6,3731.5,0.001]
[1753397194903,10.95569718,3731.6,3731.5,0.001]
[1753397195111,2.67995926,3731.4,3731.3,0.001]
[1753397195268,10.22795926,3731.4,3731.3,0.001]
[1753397195482,11.17815926,3731.4,3731.3,0.001]
[1753397195686,13.45657369,3731.4,3731.3,0.001]
[1753397198127,14.22067369,3731.4,3731.3,0.001]
[1753397198624,14.22067369,3731.4,3731.3,1e-08]
[1753397201601,6.51071842,3730.9,3730.8,1e-08]
[1753397201794,11.95381344,3730.9,3730.8,1e-08]
[1753397201993,12.90401344,3730.9,3730.8,1e-08]
[1753397204693,7.42981344,3730.9,3730.8,1e-08]
[1753397204898,11.94581344,3730.9,3730.8,1e-08]
[1753397205094,7.56421344,3730.9,3730.8,1e-08]
[1753397205294,10.19031842,3730.9,3730.8,0.49380001]
[1753397205527,7.19031842,3730.9,3730.8,0.49380001]
[1753397205843,10.19031842,3730.9,3730.8,0.49380001]
[1753397206830,2.68031842,3730.9,3730.8,0.49380001]
[1753397207101,7.18431842,3730.9,3730.8,1.09340001]
[1753397208134,7.18431842,3730.9,3730.8,0.62820001]
[1753397208300,8.63606797,3730.9,3730.8,1e-08]
[1753397208504,9.24986797,3730.9,3730.8,1e-08]
[1753397208900,8.77046797,3730.9,3730.8,1e-08]
[1753397209511,10.07576797,3730.9,3730.8,1e-08]
[1753397211703,13.07576797,3730.9,3730.8,1e-08]
[1753397214815,3.5071214,3730.2,3730.1,1e-08]
[1753397215015,11.1215214,3730.2,3730.1,1e-08]
[1753397215540,2.68089327,3730.1,3730.0,1e-08]
[1753397216046,3.75999327,3730.1,3730.0,1e-08]
[1753397216837,4.56279327,3730.1,3730.0,1e-08]
[1753397217139,6.7206952,3730.1,3730.0,1e-08]
[1753397217638,9.7206952,3730.1,3730.0,1e-08]
[1753397218142,6.45259647,3729.4,3729.3,0.001]
[1753397218307,10.92559647,3729.4,3729.3,0.001]
[1753397218511,11.05999647,3729.4,3729.3,0.001]
[1753397219130,5.81579647,3729.4,3729.3,0.001]
[1753397219329,10.28879647,3729.4,3729.3,0.001]
[1753397220254,3.0,3729.4,3729.3,0.001]
[1753397220409,7.15439647,3729.4,3729.3,0.954]
[1753397220611,7.15439647,3729.4,3729.3,0.4888]
[1753397221522,11.151406,3729.4,3729.3,0.001]
[1753397221739,12.982006,3729.4,3729.3,1e-08]
[1753397224747,13.23193718,3729.4,3729.3,1e-08]
[1753397228188,13.78193718,3729.4,3729.3,1e-08]
[1753397228350,13.78193718,3729.4,3727.5,0.4878]
[1753397228351,2.68269127,3727.6,3727.5,0.4878]
[1753397228546,7.15569127,3727.6,3727.5,0.4878]
[1753397228973,2.68276324,3727.5,3727.4,0.1344]
[1753397229379,2.68276324,3727.5,3727.4,0.5996]
[1753397229561,2.68297918,3727.2,3727.1,0.5052]
[1753397229760,7.15597918,3727.2,3727.1,0.1744]
[1753397230273,4.473,3727.2,3727.1,1.2122]
[1753397230478,4.473,3727.2,3727.1,1.6774]
[1753397230789,4.473,3727.2,3727.1,4.79650279]
[1753397230984,4.473,3727.2,3727.1,2.11345163]
[1753397231551,4.473,3727.2,3727.1,4.79650279]
[1753397234855,4.473,3727.2,3727.1,2.11345163]
[1753397236591,4.473,3727.2,3727.1,1.1274]
[1753397236895,4.473,3727.2,3726.1,0.041]
[1753397236896,16.25951653,3727.2,3726.1,0.041]
[1753397237081,2.68362719,3726.3,3726.2,0.1344]
[1753397237283,7.15662719,3726.3,3726.2,0.1344]
[1753397237484,7.15662719,3726.3,3726.2,0.5908]
[1753397239822,2.68362719,3726.3,3726.2,0.5908]
[1753397240119,7.15662719,3726.3,3726.2,0.5908]
[1753397240286,7.15662719,3726.3,3726.2,0.4564]
[1753397241310,0.1344,3726.6,3726.2,0.4564]
[1753397241311,0.1344,3726.6,3726.2,0.9288]
[1753397241513,2.68355517,3726.4,3726.3,0.9288]
[1753397242010,2.68355517,3726.4,3726.3,1.0632]
[1753397242935,2.68355517,3726.4,3726.3,0.1344]
[1753397243139,2.68369921,3726.2,3726.1,0.041]
[1753397243439,7.15669921,3726.2,3726.1,0.041]
[1753397247320,7.59149921,3726.2,3726.1,0.041]
[1753397247627,8.09089921,3726.2,3726.1,0.041]
[1753397248026,10.59149921,3726.2,3726.1,0.041]
[1753397248314,12.15907456,3726.2,3726.1,0.041]
[1753397248724,12.65847456,3726.2,3726.1,0.041]
[1753397249043,12.15907456,3726.2,3726.1,0.041]
[1753397249449,2.68384326,3726.0,3725.9,0.001]
[1753397249611,7.15684326,3726.0,3725.9,0.001]
[1753397249818,9.74480115,3726.0,3725.9,0.001]
[1753397250217,5.27180115,3726.0,3725.9,0.001]
[1753397250548,5.68391529,3725.9,3725.8,0.001]
[1753397250944,6.61811529,3725.9,3725.8,0.001]
[1753397252146,10.15691529,3725.9,3725.8,0.001]
[1753397252676,12.10655439,3725.9,3725.8,0.001]
[1753397253069,12.54135439,3725.9,3725.8,0.001]
[1753397253278,13.04075439,3725.9,3725.8,0.001]
[1753397253455,13.79135439,3725.9,3725.8,0.001]
[1753397256271,13.79135439,3725.9,3725.3,0.001]
[1753397256272,5.68427551,3725.4,3725.3,0.001]
[1753397256477,10.9931218,3725.4,3725.3,0.001]
[1753397257088,11.4279218,3725.4,3725.3,0.001]
[1753397257665,10.9931218,3725.4,3725.3,0.001]
[1753397265280,11.9207218,3725.4,3725.3,0.001]
[1753397265479,8.2653218,3725.4,3725.3,0.001]
[1753397265729,8.2653218,3725.4,3725.1,0.041]
[1753397265730,2.68441962,3725.2,3725.1,0.041]
[1753397265890,14.33647199,3725.2,3725.1,0.041]
[1753397266094,15.26407199,3725.2,3725.1,0.041]
[1753397269232,10.07183376,3725.2,3725.1,0.041]
[1753397269380,15.26407199,3725.2,3725.1,0.041]
[1753397269691,2.68477998,3724.7,3724.6,0.001]
[1753397269878,2.68477998,3724.7,3724.3,0.001]
[1753397269879,6.50159624,3724.4,3724.3,0.001]
[1753397270082,11.10499624,3724.4,3724.3,0.001]
[1753397270315,11.53499624,3724.4,3724.3,0.001]
[1753397270497,11.53399624,3724.4,3724.3,0.001]
[1753397270715,13.79334854,3724.4,3724.3,0.001]
[1753397271093,13.36334854,3724.4,3724.3,0.001]
[1753397271338,7.15299624,3724.4,3724.3,0.4581]
[1753397271502,7.15299624,3724.4,3724.3,0.9168]
[1753397271698,0.1344,3724.8,3724.3,0.9168]
[1753397271903,7.152837,3724.7,3724.4,0.9158]
[1753397272149,2.81890639,3725.1,3724.6,0.1344]
[1753397272306,4.468,3725.0,3724.7,0.9158]
[1753397272495,7.15256751,3725.0,3724.9,0.1344]
[1753397272700,4.468,3725.0,3724.9,0.5915]
[1753397273027,7.15256375,3725.0,3724.9,0.5915]
[1753397274598,0.002,3725.3,3724.9,0.5915]
[1753397274798,2.68469801,3724.9,3724.6,0.4587]
[1753397275028,4.467,3724.8,3724.6,0.4587]
[1753397275416,4.467,3724.8,3724.7,0.5915]
[1753397276143,4.467,3724.8,3724.7,1.0502]
[1753397278944,4.467,3724.8,3724.7,0.5931]
[1753397279259,4.467,3724.8,3724.7,1.0502]
[1753397280448,7.1517079,3724.8,3724.7,0.1344]
[1753397280835,4.467,3724.8,3724.7,0.5915]
[1753397281043,4.467,3724.8,3724.7,1.0502]
[1753397281242,2.68641293,3725.3,3724.7,1.42371879]
[1753397281243,0.002,3725.3,3724.7,1.42371879]
[1753397281442,4.464,3725.2,3724.7,3.19264484]
[1753397281751,4.464,3725.2,3724.8,3.60045782]
[1753397281922,4.464,3725.2,3725.1,0.1344]
[1753397282314,7.14841962,3725.2,3725.1,0.1344]
[1753397282515,2.68466091,3724.9,3724.7,0.4571]
[1753397282714,4.464,3724.8,3724.5,0.4587]
[1753397282961,4.464,3724.8,3724.6,0.4587]
[1753397283253,4.464,3724.8,3724.7,0.1344]
[1753397283550,4.464,3724.8,3724.7,0.5915]
[1753397283720,4.464,3724.8,3724.7,1.0502]
[1753397285052,4.464,3724.8,3724.7,0.1344]
[1753397285350,4.464,3724.8,3724.7,0.5915]
[1753397286125,7.1487079,3724.8,3724.7,0.5915]
[1753397287150,4.464,3724.8,3724.7,0.5915]
[1753397288056,4.464,3724.8,3724.7,1.0502]
[1753397288266,4.464,3724.8,3724.7,0.5915]
[1753397288441,4.461,3724.8,3724.7,4.28494875]
[1753397288779,4.461,3724.8,3724.7,5.50115964]
[1753397288979,4.461,3724.8,3724.7,5.04405964]
[1753397289166,4.461,3724.8,3724.7,5.50115964]
[1753397290678,4.461,3724.8,3724.7,3.36914875]
[1753397290971,4.461,3724.8,3724.7,4.28494875]
[1753397292073,4.461,3724.8,3724.7,1.6002]
[1753397292494,4.461,3724.8,3724.7,4.28497998]
[1753397293441,4.461,3724.8,3724.7,1.6002]
[1753397294479,4.461,3724.8,3724.7,1.1415]
[1753397294675,4.461,3724.8,3724.7,0.5915]
[1753397297186,7.1457079,3724.8,3724.7,0.5915]
[1753397298685,4.461,3724.8,3724.7,0.5915]
[1753397298985,4.461,3724.8,3724.7,0.6148]
[1753397299485,4.461,3724.8,3724.7,1.0469]
[1753397299686,4.461,3724.8,3724.7,0.6148]
[1753397299851,4.461,3724.8,3724.7,1.0469]
[1753397300253,7.1457079,3724.8,3724.7,1.0469]
[1753397300487,7.1457079,3724.8,3724.7,0.6148]
[1753397303817,7.1457079,3724.8,3724.7,0.1344]
[1753397304428,7.1457079,3724.8,3724.7,0.6148]
[1753397305223,4.461,3724.8,3724.7,0.6148]
[1753397305720,7.1457079,3724.8,3724.7,0.6148]
[1753397305882,4.461,3724.8,3724.7,0.6148]
[1753397306407,4.461,3724.8,3724.7,1.0469]
[1753397307411,4.451,3724.8,3724.7,1.0469]
[1753397308616,4.451,3724.8,3724.7,1.5969]
[1753397310016,4.451,3724.8,3724.7,1.1648]
[1753397310396,7.1357079,3724.8,3724.7,0.1344]
[1753397317323,7.1377079,3724.8,3724.7,0.1344]
[1753397319930,4.453,3724.8,3724.7,0.1344]
[1753397320223,7.1377079,3724.8,3724.7,0.1344]
[1753397320431,4.453,3724.8,3724.7,0.1344]
[1753397320839,0.002,3724.8,3724.7,0.6844]
[1753397321064,0.002,3724.8,3724.7,2.24234882]
[1753397321065,4.445,3724.8,3724.7,2.24234882]
[1753397321934,4.445,3724.8,3724.7,4.9271288]
[1753397322135,4.444,3724.8,3724.7,4.9271288]
[1753397322440,0.002,3724.8,3724.7,2.24234882]
[1753397322640,4.444,3724.8,3724.7,2.24234882]
[1753397323130,4.444,3724.8,3724.7,1.1648]
[1753397323835,4.444,3724.8,3724.7,1.5969]
[1753397326043,4.444,3724.8,3724.7,1.1648]
[1753397329042,4.444,3724.8,3724.7,1.1533]
[1753397334662,7.1287079,3724.8,3724.7,0.6844]
[1753397335162,4.444,3724.8,3724.7,0.6844]
[1753397335562,4.444,3724.8,3724.7,1.1533]
[1753397335963,0.002,3724.8,3724.7,2.26777382]
[1753397336162,4.435,3724.8,3724.7,2.26777382]
[1753397336934,4.435,3724.8,3724.7,0.6844]
[1753397337153,7.1197079,3724.8,3724.7,0.6844]
[1753397337351,7.5741079,3724.8,3724.7,0.6844]
[1753397338864,7.1197079,3724.8,3724.7,0.6844]
[1753397339067,7.5741079,3724.8,3724.7,0.6844]
[1753397339859,4.8894,3724.8,3724.7,0.6844]
[1753397340363,7.5741079,3724.8,3724.7,0.6844]
[1753397340666,7.1197079,3724.8,3724.7,0.6844]
[1753397340860,4.435,3724.8,3724.7,0.6844]
[1753397341865,7.1197079,3724.8,3724.7,0.6844]
[1753397342652,8.0373079,3724.8,3724.7,0.6844]
[1753397342860,7.5741079,3724.8,3724.7,0.6844]
[1753397343687,9.10949524,3724.8,3724.7,0.1344]
[1753397343988,9.87429524,3724.8,3724.7,0.1344]
[1753397345902,9.87429524,3724.8,3724.6,0.001]
[1753397345903,6.44957998,3724.7,3724.6,0.001]
[1753397346187,3.44979624,3724.4,3724.3,0.001]
[1753397346373,8.01019624,3724.4,3724.3,0.001]
[1753397346577,8.92779624,3724.4,3724.3,0.001]
[1753397351190,4.50179624,3724.4,3724.3,0.001]
[1753397351393,8.92579624,3724.4,3724.3,0.001]
[1753397351690,10.81227956,3724.4,3724.3,0.001]
[1753397358617,10.81227956,3724.4,3724.3,1e-08]
[1753397358618,13.81227956,3724.4,3724.3,1e-08]
[1753397358917,2.68528464,3724.0,3723.9,0.001]
[1753397359213,10.99188464,3724.0,3723.9,0.001]
[1753397359507,10.99188464,3724.0,3723.8,0.001]
[1753397359508,5.68535674,3723.9,3723.8,1e-08]
[1753397359709,7.36945674,3723.9,3723.8,1e-08]
[1753397362113,11.78545674,3723.9,3723.8,1e-08]
[1753397362685,10.85555674,3723.9,3723.8,1e-08]
[1753397362918,4.415,3723.9,3723.8,0.47360001]
[1753397365700,4.415,3723.9,3723.8,0.92840001]
[1753397366808,4.415,3723.9,3723.8,0.47360001]
[1753397368122,4.415,3723.9,3723.8,1e-08]
[1753397368720,8.38215674,3723.9,3723.8,1e-08]
[1753397369021,8.85555674,3723.9,3723.8,1e-08]
[1753397369219,9.79641492,3723.9,3723.8,1e-08]
[1753397369626,9.93081492,3723.9,3723.8,1e-08]
[1753397369925,12.93081492,3723.9,3723.8,1e-08]
[1753397375302,15.75881492,3723.9,3723.8,1e-08]
[1753397375518,12.93081492,3723.9,3723.8,1e-08]
[1753397376091,2.68564522,3723.5,3723.4,0.001]
[1753397376314,3.0,3723.4,3723.1,0.041]
[1753397376522,3.44496162,3723.2,3723.1,0.041]
[1753397376899,4.37486162,3723.2,3723.1,0.041]
[1753397377629,7.37486162,3723.2,3723.1,1e-08]
[1753397377809,9.94961002,3723.2,3723.1,1e-08]
[1753397378925,9.47621002,3723.2,3723.1,1e-08]
[1753397379117,9.94961002,3723.2,3723.1,1e-08]
[1753397379428,6.47423376,3723.1,3723.0,1e-08]
[1753397379595,7.53853376,3723.1,3723.0,1e-08]
[1753397379801,10.0468494,3723.1,3723.0,1e-08]
[1753397380028,14.4508494,3723.1,3723.0,1e-08]
[1753397386037,14.4508494,3723.1,3721.9,0.001]
[1753397386223,6.5185832,3722.2,3721.9,0.001]
[1753397386422,11.0529832,3722.2,3721.9,0.001]
[1753397386628,13.8888549,3722.2,3721.9,0.001]
[1753397386830,13.8888549,3722.2,3722.1,1e-08]
[1753397387207,2.68730517,3721.2,3721.1,1e-08]
[1753397387427,7.90800517,3721.2,3721.1,1e-08]
[1753397387627,8.85070517,3721.2,3721.1,1e-08]
[1753397387828,10.00449742,3721.2,3721.1,1e-08]
[1753397388908,13.00449742,3721.2,3721.1,1e-08]
[1753397391629,8.13339742,3721.2,3721.1,1e-08]
[1753397391834,12.53139742,3721.2,3721.1,1e-08]
[1753397392128,8.13339742,3721.2,3721.1,1e-08]
[1753397392346,12.53039742,3721.2,3721.1,1e-08]
[1753397394113,12.05879742,3721.2,3721.1,1e-08]
[1753397394312,7.66279742,3721.2,3721.1,1e-08]
[1753397394653,12.52939742,3721.2,3721.1,1e-08]
[1753397394861,13.00149742,3721.2,3721.1,1e-08]
[1753397395361,8.54979225,3721.2,3721.1,1e-08]
[1753397395560,10.08330517,3721.2,3721.1,1e-08]
[1753397396064,10.55390517,3721.2,3721.1,1e-08]
[1753397396860,11.02600517,3721.2,3721.1,1e-08]
[1753397397364,11.16040517,3721.2,3721.1,1e-08]
[1753397397584,11.98140517,3721.2,3721.1,1e-08]
[1753397397864,13.96748826,3721.2,3721.1,1e-08]
[1753397398966,13.49538826,3721.2,3721.1,1e-08]
[1753397399130,13.96748826,3721.2,3721.1,1e-08]
[1753397401239,13.49538826,3721.2,3721.1,1e-08]
[1753397401455,13.96748826,3721.2,3721.1,1e-08]
[1753397403857,13.96748826,3721.2,3721.1,0.00100001]
[1753397404156,13.49538826,3721.2,3721.1,0.00100001]
[1753397405273,13.01778826,3721.2,3721.1,0.00100001]
[1753397405432,8.62878826,3721.2,3721.1,0.00100001]
[1753397405754,11.97440517,3721.2,3721.1,0.00100001]
[1753397408064,6.64270517,3721.2,3721.1,0.00100001]
[1753397408254,10.20870517,3721.2,3721.1,0.00100001]
[1753397409666,10.67930517,3721.2,3721.1,0.00100001]
[1753397409831,10.67830517,3721.2,3721.1,0.00100001]
[1753397410029,12.09791444,3721.2,3721.1,0.00100001]
[1753397411670,12.09691444,3721.2,3721.1,0.00100001]
[1753397413570,11.62631444,3721.2,3721.1,0.00100001]
[1753397413761,18.61931444,3721.2,3721.1,0.00100001]
[1753397414348,19.08991444,3721.2,3721.1,0.00100001]
[1753397419987,14.23431444,3721.2,3721.1,0.00100001]
[1753397420191,17.19370517,3721.2,3721.1,0.47220001]
[1753397420388,17.19370517,3721.2,3721.1,0.00100001]
[1753397421558,18.37384147,3721.2,3721.1,0.00100001]
[1753397421860,18.9516644,3721.2,3721.1,0.00100001]
[1753397423404,18.95181207,3721.2,3721.1,0.00100001]
[1753397423590,21.54882312,3721.2,3721.1,0.00100001]
[1753397423970,22.31862312,3721.2,3721.1,0.00100001]
[1753397425214,21.74067338,3721.2,3721.1,0.00100001]
[1753397426390,21.74267338,3721.2,3721.1,1e-08]
[1753397426690,22.320683,3721.2,3721.1,1e-08]
[1753397428970,21.827383,3721.2,3721.1,1e-08]
[1753397429303,22.320683,3721.2,3721.1,1e-08]
[1753397429500,22.57166699,3721.2,3721.1,1e-08]
[1753397430300,26.10046993,3721.2,3721.1,1e-08]
[1753397430498,40.60046993,3721.2,3721.1,1e-08]
[1753397431012,42.21346993,3721.2,3721.1,1e-08]
[1753397431218,40.60046993,3721.2,3721.1,1e-08]
[1753397431525,3.35933181,3723.3,3723.0,2.6860059]
[1753397431690,0.04,3723.9,3723.1,2.78172612]
[1753397431891,0.04,3723.9,3723.8,3.23542886]
[1753397432094,0.002,3724.8,3724.5,2.68492415]
[1753397432493,4.746,3724.6,3724.5,5.72183141]
[1753397432847,4.746,3724.6,3724.5,10.63174151]
[1753397433339,1.1198879,3724.6,3724.5,10.63174151]
[1753397433539,0.002,3724.8,3724.7,6.23477998]
[1753397433833,4.741,3724.8,3724.7,7.77690724]
[1753397434130,4.739,3724.8,3724.7,7.77690724]
[1753397434334,0.002,3724.8,3724.7,9.47830521]
[1753397434542,4.739,3724.8,3724.7,9.87679999]
[1753397434849,4.739,3724.8,3724.7,8.33467273]
[1753397435152,4.737,3724.8,3724.7,10.73353688]
[1753397435299,4.737,3724.8,3724.7,16.22039042]
[1753397436321,4.737,3724.8,3724.7,18.60718058]
[1753397436630,4.735,3724.8,3724.7,18.60718058]
[1753397436929,4.735,3724.8,3724.7,16.22039042]
[1753397437493,4.735,3724.8,3724.7,18.34982513]
[1753397439338,0.002,3724.8,3724.7,18.34982513]
[1753397439520,4.714,3724.8,3724.7,15.97133204]
[1753397439930,4.714,3724.8,3724.7,8.08560058]
[1753397441518,4.714,3724.8,3724.7,9.43087607]
[1753397441730,4.714,3724.8,3724.7,3.88049609]
[1753397442045,4.714,3724.8,3724.7,0.28382263]
[1753397445820,7.3987079,3724.8,3724.7,0.28382263]
[1753397446355,4.714,3724.8,3724.7,0.28382263]
[1753397446846,4.68,3724.8,3724.7,0.28382263]
[1753397448133,7.3647079,3724.8,3724.7,0.28382263]
[1753397448364,4.68,3724.8,3724.7,0.28234102]
[1753397448550,4.663,3724.8,3724.7,0.28234102]
[1753397448717,7.3477079,3724.8,3724.7,0.28234102]
[1753397451642,2.6867079,3724.8,3724.7,0.28234102]
[1753397451847,7.3387079,3724.8,3724.7,0.28234102]
[1753397455266,4.63,3724.8,3724.7,0.28234102]
[1753397455567,0.002,3724.8,3724.7,0.57906056]
[1753397455770,0.002,3724.8,3724.7,3.81384054]
[1753397455969,4.628,3724.8,3724.7,6.84068833]
[1753397456286,4.628,3724.8,3724.7,4.12906056]
[1753397456639,4.628,3724.8,3724.7,3.28234102]
[1753397456838,4.628,3724.8,3724.7,3.83234102]
[1753397457077,5.5675,3724.8,3724.7,3.83234102]
[1753397457253,4.628,3724.8,3724.7,3.83234102]
[1753397458663,4.628,3724.8,3724.7,3.6844]
[1753397460168,4.628,3724.8,3724.7,5.59498413]
[1753397460375,4.628,3724.8,3724.7,3.6844]
[1753397460671,0.002,3724.8,3724.7,3.6844]
[1753397460877,4.606,3724.8,3724.7,4.29068931]
[1753397461277,0.002,3724.8,3724.7,4.29068931]
[1753397461468,0.97992907,3724.8,3724.7,4.29068931]
[1753397462189,0.36889156,3724.8,3724.7,4.29068931]
[1753397462379,0.11709039,3724.8,3724.7,4.29068931]
[1753397464252,0.11709039,3724.8,3724.7,3.6844]
[1753397464853,3.26819829,3724.8,3724.7,0.1344]
[1753397465053,3.74129829,3724.8,3724.7,0.1344]
[1753397465256,2.68508291,3724.3,3723.9,0.001]
[1753397465476,4.61186022,3724.2,3723.9,0.001]
[1753397465644,5.08496022,3724.2,3723.9,0.001]
[1753397465849,2.68528464,3724.0,3723.9,0.001]
[1753397466382,2.68528464,3724.0,3723.9,0.1354]
[1753397467080,3.15163706,3724.1,3723.9,0.1354]
[1753397467416,0.4664,3724.1,3723.9,0.1354]
[1753397468590,3.15162115,3724.1,3723.9,0.1354]
[1753397468756,0.4664,3724.1,3723.9,0.1354]
[1753397469089,3.15166196,3724.1,3723.9,0.1354]
[1753397469304,2.68528464,3724.0,3723.9,0.1354]
[1753397469654,3.15168464,3724.0,3723.9,0.1354]
[1753397470608,0.4664,3724.0,3723.9,0.1354]
[1753397470755,3.15168464,3724.0,3723.9,0.1354]
[1753397470955,2.68528464,3724.0,3723.9,0.1354]
[1753397471258,2.68523312,3724.1,3723.9,0.1354]
[1753397471790,2.68528464,3724.0,3723.9,0.1354]
[1753397471967,2.68521327,3724.1,3723.9,0.1354]
[1753397472163,7.73657144,3724.2,3723.9,0.1354]
[1753397472365,5.0514,3724.2,3723.9,0.1354]
[1753397472689,0.4731,3724.5,3723.9,0.551]
[1753397472690,4.558,3724.1,3723.9,0.551]
[1753397472891,0.4731,3724.5,3724.1,0.1344]
[1753397473191,4.556,3724.4,3724.0,0.1344]
[1753397473392,7.24104199,3724.4,3723.9,0.551]
[1753397473625,7.70744199,3724.4,3724.3,0.1344]
[1753397473805,3.15144199,3724.4,3724.3,0.1344]
[1753397474111,7.70444199,3724.4,3724.3,0.1344]
[1753397475125,7.69744199,3724.4,3724.3,0.1344]
[1753397479855,7.68144199,3724.4,3724.3,0.1344]
[1753397480065,2.68528464,3724.0,3723.9,0.001]
[1753397480270,7.21228464,3724.0,3723.9,0.001]
[1753397480422,8.13438464,3724.0,3723.9,0.001]
[1753397480620,8.96038464,3724.0,3723.9,0.001]